bitfinex-derivatives/quotes_SOLF0:USTF0_20250424
["timestamp","ask_amount","ask_price","bid_price","bid_amount"]
[1745538752280,23.8,152.3,152.28,5.72939294]
[1745538752982,23.8,152.3,152.29,6.5632]
[1745538758695,23.8,152.3,152.25,5.72939294]
[1745538758890,5.72939294,152.29,152.25,5.72939294]
[1745538759093,5.72939294,152.29,152.23,5.72939294]
[1745538759291,5.72939294,152.29,152.25,6.5653]
[1745538760093,5.72939294,152.29,152.26,6.5648]
[1745538760688,12.29299294,152.29,152.26,6.5648]
[1745538760996,5.72939294,152.27,152.25,6.5651]
[1745538761195,29.52939294,152.26,152.25,6.5651]
[1745538761587,29.52939294,152.26,152.21,5.72939294]
[1745538762394,29.52939294,152.26,152.23,6.5658]
[1745538762594,5.72939294,152.25,152.23,6.5658]
[1745538763191,5.72939294,152.25,152.24,6.5658]
[1745538763892,29.52939294,152.26,152.25,6.5653]
[1745538764195,23.8,152.26,152.25,6.5653]
[1745538764594,23.8,152.26,152.24,6.5657]
[1745538765094,23.8,152.26,152.23,5.72939294]
[1745538765590,23.8,152.26,152.24,6.5658]
[1745538766394,23.8,152.26,152.22,5.72939294]
[1745538766690,5.72939294,152.25,152.2,5.72939294]
[1745538767592,5.72939294,152.25,152.22,6.5665]
[1745538769499,5.72939294,152.25,152.23,6.5662]
[1745538769795,5.72939294,152.25,152.21,5.72939294]
[1745538769994,29.52939294,152.26,152.21,5.72939294]
[1745538770194,29.52939294,152.26,152.23,6.566]
[1745538771199,29.52939294,152.26,152.21,5.72939294]
[1745538771699,29.52939294,152.26,152.23,6.566]
[1745538772898,23.8,152.26,152.24,6.5656]
[1745538773097,29.52939294,152.26,152.24,6.5656]
[1745538774400,36.09429294,152.26,152.23,6.566]
[1745538774698,29.52939294,152.26,152.21,5.72939294]
[1745538774898,29.52939294,152.26,152.19,3.9675]
[1745538774899,5.72939294,152.24,152.19,9.69689294]
[1745538775099,5.72939294,152.24,152.19,5.72939294]
[1745538775802,5.72939294,152.21,152.15,5.72939294]
[1745538776002,23.8,152.2,152.18,5.72939294]
[1745538776203,23.8,152.2,152.19,12.29729294]
[1745538776501,23.8,152.23,152.19,5.72939294]
[1745538776698,23.8,152.23,152.22,5.72939294]
[1745538777203,23.8,152.23,152.22,12.29569294]
[1745538777700,23.8,152.23,152.22,5.72939294]
[1745538777903,23.8,152.23,152.21,6.5669]
[1745538779406,23.8,152.23,152.2,12.29659294]
[1745538779706,23.8,152.23,152.2,5.72939294]
[1745538780100,23.8,152.23,152.21,6.567]
[1745538781304,23.8,152.23,152.22,6.5666]
[1745538787904,29.52939294,152.26,152.22,12.29599294]
[1745538788203,29.52939294,152.26,152.21,6.567]
[1745538788405,5.72939294,152.24,152.21,6.567]
[1745538790204,5.72939294,152.24,152.22,6.5666]
[1745538794700,5.72939294,152.24,152.14,382.5941]
[1745538794900,5.72939294,152.22,152.18,5.72939294]
[1745538795103,23.8,152.21,152.16,5.72939294]
[1745538795405,23.8,152.21,152.18,6.5681]
[1745538795905,30.3672,152.21,152.18,6.5681]
[1745538798206,29.52939294,152.21,152.19,6.5679]
[1745538798906,29.52939294,152.21,152.18,6.5682]
[1745538799207,36.09659294,152.21,152.18,6.5682]
[1745538799507,36.09659294,152.21,152.17,6.5686]
[1745538800509,12.29699294,152.2,152.17,6.5686]
[1745538801007,12.29699294,152.2,152.16,6.5691]
[1745538801906,5.72939294,152.2,152.17,6.5688]
[1745538803806,12.29689294,152.2,152.16,5.72939294]
[1745538804407,12.29689294,152.2,152.17,6.5687]
[1745538804711,12.29689294,152.2,152.14,3.7941]
[1745538804909,12.29689294,152.2,152.13,3.7253]
[1745538804910,5.72939294,152.16,152.11,7.55868303]
[1745538805111,29.52939294,152.15,152.11,13.28807597]
[1745538805410,23.78,152.15,152.12,5.72939294]
[1745538806112,23.78,152.15,152.14,5.72939294]
[1745538807014,23.78,152.15,152.14,12.29949294]
[1745538808111,23.8,152.18,152.17,6.5684]
[1745538808308,23.8,152.18,152.17,12.29779294]
[1745538810414,23.8,152.21,152.17,5.72939294]
[1745538810614,23.8,152.21,152.19,5.72939294]
[1745538811017,23.8,152.21,152.2,6.5675]
[1745538811315,23.8,152.21,152.2,12.29689294]
[1745538811509,23.8,152.24,152.2,5.72939294]
[1745538811711,23.8,152.24,152.21,5.72939294]
[1745538812219,23.8,152.24,152.22,5.72939294]
[1745538812716,23.8,152.24,152.23,6.5662]
[1745538813615,23.8,152.24,152.22,12.29589294]
[1745538816313,29.52939294,152.24,152.21,5.72939294]
[1745538816520,23.8,152.24,152.2,5.72939294]
[1745538816818,23.8,152.24,152.22,6.5666]
[1745538817520,23.8,152.24,152.21,12.29629294]
[1745538817717,23.8,152.24,152.2,5.72939294]
[1745538818020,29.52939294,152.24,152.2,5.72939294]
[1745538818219,29.52939294,152.24,152.21,6.5668]
[1745538819317,23.8,152.24,152.21,6.5668]
[1745538820518,23.8,152.24,152.2,5.72939294]
[1745538820519,23.8,152.24,152.22,6.5665]
[1745538821120,23.8,152.24,152.21,12.29619294]
[1745538823121,23.8,152.24,152.22,6.5666]
[1745538824117,23.8,152.24,152.21,12.29639294]
[1745538824517,23.8,152.24,152.21,5.72939294]
[1745538824727,29.52939294,152.24,152.15,11.6312]
[1745538824926,29.52939294,152.24,152.2,5.72939294]
[1745538825222,23.8,152.24,152.21,5.72939294]
[1745538825414,23.8,152.24,152.22,6.5666]
[1745538825618,23.8,152.24,152.21,5.72939294]
[1745538827024,23.8,152.24,152.22,5.72939294]
[1745538828225,23.8,152.24,152.23,6.5662]
[1745538828730,23.8,152.24,152.22,5.72939294]
[1745538829026,23.8,152.24,152.22,12.29589294]
[1745538830428,23.8,152.24,152.23,6.5662]
[1745538832429,23.8,152.24,152.23,12.29559294]
[1745538835428,23.78,152.27,152.25,6.5651]
[1745538836935,23.78,152.27,152.25,12.29449294]
[1745538837234,23.78,152.27,152.26,6.5649]
[1745538842538,27.5625,152.3,152.28,6.5639]
[1745538843040,27.5625,152.3,152.27,5.72939294]
[1745538843340,33.29189294,152.3,152.27,5.72939294]
[1745538844140,39.85529294,152.3,152.27,12.29359294]
[1745538844641,33.29189294,152.3,152.26,6.5648]
[1745538844838,5.72939294,152.28,152.25,5.72939294]
[1745538845039,5.72939294,152.28,152.23,5.72939294]
[1745538845541,12.29369294,152.28,152.25,6.5653]
[1745538846636,5.72939294,152.28,152.25,6.5653]
[1745538846841,5.72939294,152.28,152.26,6.5648]
[1745538847743,5.72939294,152.28,152.19,31.33868303]
[1745538847943,5.72939294,152.28,152.24,5.72939294]
[1745538848638,12.29359294,152.28,152.25,6.5651]
[1745538849149,5.72939294,152.26,152.19,31.33868303]
[1745538849340,31.2953,152.3,152.19,31.33868303]
[1745538849341,5.72939294,152.24,152.19,13.28807597]
[1745538849846,12.29689294,152.2,152.19,7.55868303]
[1745538850044,36.05689294,152.2,152.19,7.55868303]
[1745538850645,36.05689294,152.2,152.18,7.55868303]
[1745538852144,6.5679,152.19,152.18,7.55868303]
[1745538853344,6.5679,152.19,152.16,67.03846424]
[1745538853345,6.5679,152.19,152.16,6.569]
[1745538853541,5.72939294,152.18,152.13,5.72939294]
[1745538853734,5.72939294,152.19,152.14,5.72939294]
[1745538853941,10.21878588,152.2,152.15,5.72939294]
[1745538854138,16.78648588,152.2,152.16,6.5689]
[1745538854848,16.78648588,152.2,152.15,5.72939294]
[1745538854849,16.78648588,152.2,152.17,6.5688]
[1745538856243,5.72939294,152.18,152.11,3.8556]
[1745538856547,5.72939294,152.16,152.12,5.72939294]
[1745538856743,23.78,152.15,152.12,5.72939294]
[1745538857145,23.78,152.15,152.11,3.8556]
[1745538857146,23.78,152.19,152.14,5.72939294]
[1745538857340,23.78,152.19,152.16,5.72939294]
[1745538858851,23.78,152.19,152.16,12.29839294]
[1745538860149,23.78,152.19,152.16,5.72939294]
[1745538861650,23.78,152.19,152.17,6.5685]
[1745538869554,23.78,152.19,152.16,12.29849294]
[1745538870958,23.78,152.19,152.17,6.5687]
[1745538871657,23.78,152.19,152.16,12.29859294]
[1745538872959,30.348,152.19,152.16,12.29859294]
[1745538873654,6.5684,152.18,152.15,12.29879294]
[1745538873959,5.72939294,152.18,152.14,5.72939294]
[1745538874159,5.72939294,152.18,152.13,5.72939294]
[1745538875256,29.50939294,152.19,152.14,5.72939294]
[1745538875455,29.50939294,152.19,152.15,5.72939294]
[1745538875758,36.07729294,152.19,152.15,12.29859294]
[1745538876059,23.78,152.19,152.16,5.72939294]
[1745538876357,23.78,152.19,152.17,6.5688]
[1745538877457,5.72939294,152.18,152.13,5.72939294]
[1745538877760,12.29799294,152.18,152.13,5.72939294]
[1745538878261,12.29799294,152.18,152.14,6.5698]
[1745538878759,6.5688,152.17,152.14,6.5698]
[1745538881562,12.29799294,152.18,152.15,6.5696]
[1745538884161,6.5686,152.18,152.15,6.5696]
[1745538884464,23.78,152.19,152.14,5.72939294]
[1745538886073,6.5684,152.18,152.15,6.5694]
[1745538886465,23.78,152.19,152.14,5.72939294]
[1745538886667,5.72939294,152.18,152.12,5.72939294]
[1745538887966,5.72939294,152.16,152.12,5.72939294]
[1745538888170,23.78,152.15,152.12,5.72939294]
[1745538888577,30.35,152.15,152.12,12.30009294]
[1745538889175,30.35,152.15,152.12,6.5707]
[1745538889475,30.35,152.15,152.11,12.30059294]
[1745538889880,36.07939294,152.15,152.11,12.30059294]
[1745538891079,36.07939294,152.15,152.12,6.5709]
[1745538891283,23.78,152.15,152.12,12.30029294]
[1745538892681,30.3497,152.15,152.12,12.30029294]
[1745538893285,23.78,152.15,152.12,12.30029294]
[1745538893482,23.78,152.15,152.13,6.5705]
[1745538893682,23.78,152.15,152.12,5.72939294]
[1745538893983,30.3498,152.15,152.12,12.30019294]
[1745538894883,23.78,152.15,152.12,12.30019294]
[1745538896185,29.50939294,152.15,152.12,6.5708]
[1745538896783,5.72939294,152.14,152.11,6.5712]
[1745538897279,5.72939294,152.14,152.1,5.72939294]
[1745538897580,23.78,152.15,152.13,5.72939294]
[1745538897984,23.78,152.15,152.13,12.29959294]
[1745538898282,23.78,152.15,152.13,5.72939294]
[1745538899184,23.78,152.15,152.14,6.5701]
[1745538901382,23.78,152.15,152.13,12.29979294]
[1745538902584,23.78,152.15,152.13,6.5704]
[1745538902785,23.78,152.15,152.12,6.5708]
[1745538903087,5.72939294,152.14,152.11,5.72939294]
[1745538903385,5.72939294,152.14,152.11,12.30049294]
[1745538905685,30.3499,152.15,152.12,6.5709]
[1745538909286,12.29949294,152.14,152.09,5.72939294]
[1745538909886,12.29949294,152.14,152.1,6.5715]
[1745538910281,30.3498,152.15,152.11,5.72939294]
[1745538910489,23.78,152.15,152.12,6.5709]
[1745538910785,23.78,152.15,152.13,5.72939294]
[1745538910989,23.78,152.15,152.14,6.5701]
[1745538912290,23.76,152.18,152.16,6.5692]
[1745538912689,23.76,152.18,152.15,5.72939294]
[1745538913188,23.76,152.18,152.15,12.29879294]
[1745538913790,30.3285,152.18,152.15,5.72939294]
[1745538914090,23.76,152.18,152.15,5.72939294]
[1745538914388,5.72939294,152.16,152.13,5.72939294]
[1745538914788,5.72939294,152.16,152.09,3.7005]
[1745538914992,5.72939294,152.14,152.08,5.72939294]
[1745538915191,5.72939294,152.12,152.08,5.72939294]
[1745538915391,5.72939294,152.12,152.09,7.55868303]
[1745538915590,12.30059294,152.12,152.09,7.55868303]
[1745538915789,5.72939294,152.12,152.09,7.55868303]
[1745538916191,12.30039294,152.12,152.09,14.13088303]
[1745538916995,5.72939294,152.12,152.09,14.13088303]
[1745538917398,5.72939294,152.12,152.09,7.55868303]
[1745538917595,36.06009294,152.13,152.09,7.55868303]
[1745538917896,36.06009294,152.13,152.09,6.572]
[1745538919600,29.48939294,152.13,152.1,6.5717]
[1745538921299,36.05999294,152.13,152.1,6.5717]
[1745538922302,29.48939294,152.13,152.1,6.5717]
[1745538923000,36.05989294,152.13,152.1,6.5717]
[1745538926305,6.5711,152.12,152.09,6.5722]
[1745538932214,6.5714,152.11,152.08,6.5725]
[1745538932411,6.5714,152.11,152.07,5.72939294]
[1745538932809,6.5719,152.1,152.07,12.30209294]
[1745538933408,6.5715,152.11,152.08,6.5725]
[1745538933614,5.72939294,152.12,152.07,5.72939294]
[1745538934112,12.30039294,152.12,152.08,6.5725]
[1745538939916,12.30039294,152.12,152.09,6.5722]
[1745538940117,36.05999294,152.13,152.09,6.5722]
[1745538940319,29.48939294,152.13,152.09,6.5722]
[1745538941112,29.48939294,152.13,152.1,6.5717]
[1745538944419,36.05999294,152.13,152.1,6.5717]
[1745538944927,29.48939294,152.13,152.11,6.5713]
[1745538946528,36.05999294,152.13,152.1,6.5716]
[1745538946825,3.8508,152.17,152.11,5.72939294]
[1745538947028,23.76,152.17,152.16,5.72939294]
[1745538948333,23.76,152.17,152.16,12.29859294]
[1745538950034,5.72939294,152.22,152.16,5.72939294]
[1745538950225,5.72939294,152.22,152.18,5.72939294]
[1745538950425,12.29629294,152.22,152.18,12.29749294]
[1745538951433,12.29629294,152.22,152.19,6.5679]
[1745538952127,5.72939294,152.22,152.2,6.5675]
[1745538952324,5.72939294,152.22,152.17,5.72939294]
[1745538953034,5.72939294,152.22,152.19,6.5676]
[1745538953234,5.72939294,152.22,152.17,5.72939294]
[1745538953432,36.05579294,152.23,152.17,5.72939294]
[1745538954537,23.76,152.23,152.19,5.72939294]
[1745538955039,23.76,152.23,152.21,6.5668]
[1745538955636,29.48939294,152.23,152.21,6.5668]
[1745538955837,5.72939294,152.22,152.16,5.72939294]
[1745538956038,5.72939294,152.21,152.16,5.72939294]
[1745538956536,5.72939294,152.19,152.14,29.46939294]
[1745538956741,29.46939294,152.19,152.14,5.72939294]
[1745538958236,29.46939294,152.19,152.16,6.569]
[1745538958736,23.74,152.19,152.16,12.29839294]
[1745538958942,23.74,152.19,152.17,6.5687]
[1745538960642,23.74,152.19,152.16,12.29849294]
[1745538960842,23.74,152.19,152.16,5.72939294]
[1745538961642,23.74,152.19,152.17,6.5685]
[1745538962242,23.74,152.19,152.18,6.5684]
[1745538963641,23.74,152.19,152.12,3.9285]
[1745538963844,5.72939294,152.18,152.13,5.72939294]
[1745538964944,5.72939294,152.18,152.15,6.5693]
[1745538966645,12.29779294,152.18,152.14,6.5699]
[1745538967347,12.29779294,152.18,152.15,6.5696]
[1745538967746,5.72939294,152.18,152.15,6.5696]
[1745538967946,5.72939294,152.18,152.13,5.72939294]
[1745538969047,12.29799294,152.18,152.14,6.5701]
[1745538969648,6.5689,152.17,152.13,12.29959294]
[1745538969845,6.5689,152.17,152.13,5.72939294]
[1745538970849,12.29789294,152.18,152.14,6.57]
[1745538971649,23.74,152.19,152.16,6.5692]
[1745538971847,23.74,152.19,152.15,5.72939294]
[1745538972149,23.74,152.19,152.17,5.72939294]
[1745538972349,23.74,152.19,152.18,6.5684]
[1745538972757,29.46939294,152.22,152.17,5.72939294]
[1745538973251,29.46939294,152.22,152.19,6.5677]
[1745538973449,29.46939294,152.22,152.17,5.72939294]
[1745538974147,29.46939294,152.22,152.18,6.5682]
[1745538974350,29.46939294,152.22,152.17,5.72939294]
[1745538974951,6.5673,152.21,152.17,12.29789294]
[1745538976956,36.03619294,152.22,152.18,6.5683]
[1745538977156,29.46939294,152.22,152.18,6.5683]
[1745538977555,6.5674,152.21,152.17,12.29799294]
[1745538978358,6.5674,152.21,152.18,6.5682]
[1745538980660,23.74,152.22,152.17,5.72939294]
[1745538980861,23.74,152.22,152.21,5.72939294]
[1745538981357,23.74,152.22,152.21,12.29649294]
[1745538984162,23.74,152.22,152.19,5.72939294]
[1745538984362,23.74,152.22,152.14,30.23473212]
[1745538984363,23.74,152.22,152.17,5.72939294]
[1745538984664,5.72939294,152.21,152.17,5.72939294]
[1745538984960,5.72939294,152.21,152.18,6.5683]
[1745538985360,12.29649294,152.21,152.17,12.29809294]
[1745538986263,12.29649294,152.21,152.17,6.5687]
[1745538986961,6.5676,152.2,152.16,12.29849294]
[1745538987163,5.72939294,152.21,152.16,5.72939294]
[1745538987463,12.29669294,152.21,152.17,6.5685]
[1745538988060,12.29669294,152.21,152.18,6.5683]
[1745538988564,12.29669294,152.21,152.16,5.72939294]
[1745538989061,12.29669294,152.21,152.17,6.5685]
[1745538989463,6.5675,152.2,152.17,6.5685]
[1745538990069,6.5675,152.2,152.16,12.29849294]
[1745538990967,12.29689294,152.2,152.16,6.5691]
[1745538992165,5.72939294,152.2,152.16,6.5691]
[1745538992364,5.72939294,152.2,152.17,6.5686]
[1745538994168,23.74,152.22,152.15,5.72939294]
[1745538994169,5.72939294,152.18,152.15,6.5696]
[1745538994364,29.44939294,152.18,152.12,13.28807597]
[1745538994567,5.72939294,152.16,152.12,13.28807597]
[1745538994766,5.72939294,152.16,152.13,6.5703]
[1745538995271,5.72939294,152.16,152.14,6.57]
[1745538995573,5.72939294,152.16,152.12,13.28807597]
[1745538996572,5.72939294,152.16,152.13,6.5703]
[1745538997371,23.72,152.18,152.14,5.72939294]
[1745538997574,23.72,152.18,152.16,5.72939294]
[1745538998473,29.44939294,152.18,152.11,3.7425]
[1745538998672,5.72939294,152.16,152.11,5.72939294]
[1745538999874,5.72939294,152.16,152.13,6.5703]
[1745539002378,5.72939294,152.16,152.14,6.5701]
[1745539002876,12.29869294,152.16,152.11,5.72939294]
[1745539003076,12.29869294,152.16,152.13,6.5703]
[1745539003077,5.72939294,152.16,152.13,6.5703]
[1745539005080,5.72939294,152.16,152.14,6.5699]
[1745539008781,5.72939294,152.16,152.09,5.72939294]
[1745539008978,5.72939294,152.13,152.09,5.72939294]
[1745539009281,23.72,152.12,152.07,3.9616]
[1745539009481,23.72,152.12,152.09,5.72939294]
[1745539009683,23.72,152.12,152.1,6.5716]
[1745539011186,23.72,152.12,152.09,12.30149294]
[1745539012283,23.72,152.12,152.1,6.5718]
[1745539015488,23.72,152.12,152.11,6.5714]
[1745539015784,23.72,152.12,152.11,12.30079294]
[1745539016788,23.72,152.12,152.1,6.5716]
[1745539017487,29.44939294,152.12,152.09,6.572]
[1745539018387,29.44939294,152.12,152.1,6.5717]
[1745539019087,23.72,152.12,152.1,6.5717]
[1745539019886,23.72,152.12,152.11,6.5714]
[1745539020488,23.72,152.12,152.11,12.30079294]
[1745539022488,23.72,152.12,152.11,6.5714]
[1745539023190,23.72,152.12,152.09,5.72939294]
[1745539023889,23.72,152.12,152.1,6.5718]
[1745539024593,29.44939294,152.12,152.07,3.9616]
[1745539024788,29.44939294,152.12,152.07,9.69099294]
[1745539025293,29.44939294,152.12,152.09,6.5722]
[1745539027293,6.5715,152.11,152.06,5.72939294]
[1745539027593,5.72939294,152.1,152.03,27.6114]
[1745539027793,5.72939294,152.1,152.05,5.72939294]
[1745539028089,29.44939294,152.12,152.07,5.72939294]
[1745539028594,29.44939294,152.12,152.09,6.5722]
[1745539029094,36.02039294,152.12,152.07,5.72939294]
[1745539029595,36.02039294,152.12,152.08,6.5723]
[1745539030294,36.02039294,152.12,152.09,6.5722]
[1745539030596,29.44939294,152.12,152.09,6.5722]
[1745539033896,29.44939294,152.12,152.1,6.5716]
[1745539034292,23.72,152.12,152.09,5.72939294]
[1745539034595,23.72,152.15,152.14,6.5698]
[1745539035186,23.72,152.15,152.08,11.8001]
[1745539035396,30.2898,152.15,152.11,5.72939294]
[1745539035696,23.72,152.15,152.14,6.5701]
[1745539044308,23.72,152.15,152.13,12.29969294]
[1745539044806,23.72,152.15,152.13,6.5703]
[1745539047410,23.72,152.15,152.14,6.5701]
[1745539049510,23.7,152.18,152.16,6.5689]
[1745539049710,23.7,152.18,152.15,5.72939294]
[1745539049910,23.7,152.18,152.16,6.5692]
[1745539050413,29.42939294,152.18,152.13,5.72939294]
[1745539051715,23.7,152.18,152.14,5.72939294]
[1745539052012,23.7,152.18,152.16,6.569]
[1745539054317,23.7,152.18,152.15,6.5695]
[1745539054519,23.7,152.18,152.14,5.72939294]
[1745539055014,23.7,152.18,152.16,6.5689]
[1745539056420,23.7,152.18,152.14,5.72939294]
[1745539057024,23.7,152.18,152.17,6.5688]
[1745539060027,23.7,152.18,152.14,5.72939294]
[1745539060427,23.7,152.18,152.16,6.569]
[1745539063026,360.0,152.29,152.16,6.569]
[1745539063027,23.7,152.4,152.17,23.7]
[1745539063227,9.79629294,152.37,152.3,5.72939294]
[1745539063420,23.7,152.36,152.3,5.72939294]
[1745539064529,23.7,152.36,152.32,6.562]
[1745539064829,5.72939294,152.35,152.32,6.562]
[1745539065130,5.72939294,152.35,152.33,6.5618]
[1745539065326,23.7,152.36,152.32,5.72939294]
[1745539066334,23.7,152.36,152.34,6.5612]
[1745539066934,23.7,152.36,152.35,6.561]
[1745539067134,23.7,152.36,152.31,5.72939294]
[1745539067334,5.72939294,152.35,152.31,5.72939294]
[1745539067637,5.72939294,152.33,152.32,6.5622]
[1745539068434,5.72939294,152.35,152.32,6.5622]
[1745539069531,5.72939294,152.35,152.33,6.5619]
[1745539072736,23.68,152.39,152.33,5.72939294]
[1745539073036,29.40939294,152.39,152.37,6.5601]
[1745539073635,29.40939294,152.39,152.35,5.72939294]
[1745539073933,5.72939294,152.36,152.27,11.8308]
[1745539074133,5.72939294,152.34,152.29,5.72939294]
[1745539074338,23.68,152.35,152.33,6.5619]
[1745539074838,23.68,152.35,152.33,6.5616]
[1745539077144,23.68,152.35,152.34,6.5615]
[1745539078539,23.68,152.38,152.32,8.96020475]
[1745539079140,23.68,152.38,152.36,6.5602]
[1745539080341,23.68,152.38,152.35,6.5609]
[1745539080540,23.68,152.38,152.3,32.64020475]
[1745539080942,23.68,152.38,152.32,6.5621]
[1745539081542,6.5604,152.37,152.32,6.5621]
[1745539082038,23.68,152.38,152.32,6.5621]
[1745539082239,6.5606,152.36,152.32,6.5621]
[1745539082942,6.5606,152.36,152.33,6.5618]
[1745539084245,6.5603,152.37,152.34,6.5614]
[1745539084444,23.68,152.38,152.34,6.5614]
[1745539085246,6.5603,152.37,152.34,6.5614]
[1745539086343,23.68,152.38,152.33,6.5617]
[1745539087248,6.5602,152.37,152.34,6.5614]
[1745539088146,6.5602,152.37,152.33,6.5617]
[1745539089148,6.5602,152.37,152.34,6.5614]
[1745539090246,6.5602,152.37,152.33,6.5617]
[1745539091848,6.5602,152.37,152.34,6.5614]
[1745539094151,30.24,152.38,152.3,8.96020475]
[1745539094655,23.68,152.38,152.32,8.96020475]
[1745539094954,23.68,152.38,152.36,6.5604]
[1745539095254,23.68,152.38,152.32,8.96020475]
[1745539096153,23.68,152.38,152.35,6.5608]
[1745539096451,23.68,152.38,152.32,8.96020475]
[1745539097152,23.68,152.38,152.36,6.5603]
[1745539097753,23.68,152.38,152.37,6.5602]
[1745539098151,23.68,152.38,152.36,6.5604]
[1745539099556,23.68,152.38,152.37,6.5602]
[1745539100957,23.68,152.38,152.36,6.5604]
[1745539101157,23.68,152.38,152.35,5.73226927]
[1745539102359,23.68,152.38,152.37,6.5602]
[1745539103655,35.95086927,152.41,152.38,6.5597]
[1745539103860,23.66,152.41,152.39,5.73226927]
[1745539104259,23.66,152.41,152.4,6.5589]
[1745539106161,23.66,152.41,152.39,12.29136927]
[1745539107457,30.2185,152.41,152.38,6.5597]
[1745539107661,30.2185,152.41,152.36,5.73226927]
[1745539107662,29.39226927,152.41,152.36,5.73226927]
[1745539108060,35.95096927,152.41,152.37,6.5599]
[1745539108561,35.95096927,152.41,152.38,6.5597]
[1745539109062,29.39226927,152.41,152.38,6.5597]
[1745539109869,29.39226927,152.41,152.38,12.29196927]
[1745539110069,29.39226927,152.41,152.39,6.5592]
[1745539110270,23.66,152.41,152.39,6.5592]
[1745539113870,23.66,152.41,152.4,6.5589]
[1745539118371,23.64,152.44,152.43,6.5576]
[1745539118575,23.64,152.47,152.42,5.73226927]
[1745539118871,23.64,152.47,152.44,5.73226927]
[1745539119073,23.64,152.47,152.46,6.5563]
[1745539120976,23.64,152.47,152.45,6.5565]
[1745539121877,23.64,152.47,152.44,12.28926927]
[1745539122277,23.64,152.47,152.44,5.73226927]
[1745539122478,23.64,152.47,152.45,6.5563]
[1745539122979,23.64,152.47,152.46,5.73226927]
[1745539123181,23.64,152.47,152.46,6.5563]
[1745539125680,1.14158247,152.6,152.46,367.29226927]
[1745539125882,23.64,152.67,152.55,5.73226927]
[1745539126083,5.73226927,152.61,152.55,5.73226927]
[1745539126478,29.37226927,152.61,152.57,6.5515]
[1745539126683,29.37226927,152.61,152.55,5.73226927]
[1745539126877,5.73226927,152.59,152.55,12.28456927]
[1745539127084,5.73226927,152.59,152.55,6.5523]
[1745539127480,5.73226927,152.59,152.53,5.73226927]
[1745539127680,4.0925,152.6,152.54,6.5525]
[1745539127882,5.73226927,152.58,152.55,1.63854935]
[1745539128082,5.73226927,152.58,152.56,1.63854935]
[1745539128281,5.73226927,152.58,152.57,1.63854935]
[1745539128484,5.73226927,152.58,152.53,5.73226927]
[1745539128685,5.73226927,152.58,152.54,1.63858443]
[1745539128882,5.73226927,152.58,152.55,8.19068443]
[1745539129082,5.73226927,152.58,152.56,1.63858443]
[1745539129281,5.73226927,152.58,152.55,6.5521]
[1745539129481,5.73226927,152.58,152.56,1.63858029]
[1745539129680,5.73226927,152.58,152.55,6.5521]
[1745539130385,5.73226927,152.58,152.54,6.5528]
[1745539130684,5.73226927,152.56,152.51,5.73226927]
[1745539130886,5.73226927,152.56,152.52,1.63870381]
[1745539131082,5.73226927,152.56,152.53,1.63870381]
[1745539131281,5.73226927,152.56,152.54,1.63870381]
[1745539131477,5.73226927,152.56,152.51,5.73226927]
[1745539131678,5.73226927,152.56,152.52,1.63869628]
[1745539131880,5.73226927,152.56,152.53,1.63869628]
[1745539132084,5.73226927,152.56,152.51,5.73226927]
[1745539132277,5.73226927,152.56,152.52,1.63883034]
[1745539132482,5.73226927,152.56,152.53,1.63883034]
[1745539132785,5.73226927,152.56,152.51,5.73226927]
[1745539132987,5.73226927,152.56,152.52,1.63881341]
[1745539133190,5.73226927,152.56,152.51,5.73226927]
[1745539133387,5.73226927,152.56,152.52,8.19252367]
[1745539133587,5.73226927,152.56,152.52,6.5537]
[1745539133789,5.73226927,152.56,152.51,12.28626927]
[1745539134087,5.73226927,152.56,152.52,1.6388229]
[1745539134290,5.73226927,152.56,152.51,5.73226927]
[1745539134481,5.73226927,152.56,152.52,8.19244896]
[1745539134684,5.73226927,152.56,152.52,6.5536]
[1745539135189,5.73226927,152.56,152.53,6.5532]
[1745539137189,27.6722,152.57,152.51,5.73226927]